bitfinex/quotes_BTCUSD_20220109
["timestamp","ask_amount","ask_price","bid_price","bid_amount"]
[1641758864170,0.00023131,42622.0,42621.0,0.91420899]
[1641758864371,0.00023131,42622.0,42621.0,1.97633053]
[1641758864574,0.00023131,42622.0,42621.0,2.02333053]
[1641758865171,0.00023131,42622.0,42621.0,1.77640154]
[1641758865375,0.00023131,42622.0,42621.0,1.75140154]
[1641758865574,0.00023131,42622.0,42621.0,1.73225854]
[1641758865973,0.00023131,42622.0,42621.0,1.74425854]
[1641758866576,0.00023131,42622.0,42621.0,1.84425854]
[1641758866826,0.00023131,42622.0,42621.0,1.84549743]
[1641758867229,0.45185394,42632.0,42626.0,0.058634]
[1641758867426,0.31767893,42631.0,42626.0,0.105634]
[1641758868030,0.32267893,42631.0,42626.0,0.137634]
[1641758869227,0.32267893,42631.0,42626.0,0.105634]
[1641758869427,0.31767893,42631.0,42626.0,0.105634]
[1641758869626,0.31767893,42631.0,42626.0,0.235634]
[1641758870028,0.31267893,42631.0,42626.0,0.267634]
[1641758870470,0.31267893,42631.0,42626.0,0.209]
[1641758870675,0.31267893,42631.0,42626.0,0.162]
[1641758871276,0.35767893,42631.0,42626.0,0.13]
[1641758871474,0.05864459,42629.0,42626.0,0.13]
[1641758871672,0.38401,42628.0,42626.0,0.13]
[1641758871873,0.38401,42628.0,42608.0,0.37789113]
[1641758871874,0.00121474,42618.0,42610.0,0.058662]
[1641758872471,0.00121474,42618.0,42608.0,0.54009448]
[1641758872671,0.00121474,42618.0,42609.0,0.27677194]
[1641758873071,0.00121474,42618.0,42613.0,0.058659]
[1641758873275,0.23968214,42621.0,42613.0,0.058659]
[1641758873276,0.05,42621.0,42613.0,0.058659]
[1641758873872,0.0012372,42624.0,42618.0,0.23692533]
[1641758874072,0.0012372,42624.0,42619.0,0.058649]
[1641758874822,0.28296814,42628.0,42619.0,0.058649]
[1641758875321,1.0,42624.0,42619.0,0.058649]
[1641758875721,1.25173634,42624.0,42622.0,0.40775886]
[1641758876125,1.53530844,42623.0,42622.0,0.40775886]
[1641758876523,1.63530844,42623.0,42622.0,0.40775886]
[1641758876724,0.23418628,42617.0,42613.0,0.029]
[1641758877123,0.28418628,42617.0,42613.0,0.029]
[1641758877326,0.28418628,42617.0,42607.0,0.117322]
[1641758877523,0.00121688,42616.0,42607.0,0.117322]
[1641758877723,0.05866427,42614.0,42607.0,0.117322]
[1641758877977,0.27397422,42615.0,42607.0,0.117322]
[1641758878176,0.00421688,42616.0,42611.0,0.05866]
[1641758879176,0.28599364,42615.0,42611.0,0.05866]
[1641758880078,0.28999364,42615.0,42611.0,0.05866]
[1641758880278,0.33999364,42615.0,42607.0,0.38051119]
[1641758880477,0.33999364,42615.0,42607.0,0.38041119]
[1641758880478,0.28999364,42615.0,42607.0,0.38041119]
[1641758880679,0.05866456,42614.0,42607.0,0.117222]
[1641758880882,0.05866456,42614.0,42605.0,0.13363207]
[1641758881085,0.33999364,42615.0,42605.0,0.13363207]
[1641758881381,0.33999364,42615.0,42609.0,0.00021272]
[1641758881382,0.00122511,42610.0,42609.0,0.00021272]
[1641758881582,1.78394764,42610.0,42609.0,0.00021272]
[1641758882024,1.84094764,42610.0,42609.0,0.00021272]
[1641758882624,1.84094764,42610.0,42607.0,0.00021273]
[1641758882826,0.77236914,42608.0,42607.0,0.00021273]
[1641758883027,1.20637914,42608.0,42607.0,0.00021273]
[1641758883525,0.70637914,42608.0,42606.0,0.00021273]
[1641758883729,0.32236914,42608.0,42606.0,0.00021273]
[1641758884026,0.32636914,42608.0,42606.0,0.00021273]
[1641758884626,0.32636914,42608.0,42605.0,0.1338448]
[1641758885327,0.32236914,42608.0,42605.0,0.1338448]
[1641758885777,0.32236914,42608.0,42605.0,0.13363207]
[1641758885977,0.38401,42607.0,42605.0,0.13363207]
[1641758886180,0.00123755,42606.0,42605.0,0.13363207]
[1641758886380,1.53524755,42606.0,42605.0,0.13363207]
[1641758886578,1.68524755,42606.0,42605.0,0.13363207]
[1641758886877,0.93513316,42606.0,42605.0,0.13363207]
[1641758887079,0.88513316,42606.0,42605.0,0.13363207]
[1641758888078,0.13363207,42603.0,42597.0,0.00082279]
[1641758888282,0.13363207,42603.0,42585.0,0.04711]
[1641758888283,1.15167244,42586.0,42582.0,0.00011]
[1641758888582,0.10851233,42585.0,42582.0,0.00011]
[1641758888982,0.383862,42584.0,42582.0,0.00011]
[1641758889230,0.483862,42584.0,42582.0,0.00011]
[1641758890129,0.391862,42584.0,42582.0,0.00011]
[1641758890529,0.76480819,42584.0,42582.0,0.00011]
[1641758891231,0.008,42584.0,42582.0,0.00011]
[1641758891431,1.14667244,42586.0,42585.0,0.23463235]
[1641758891831,1.14667244,42586.0,42585.0,0.57836427]
[1641758892031,1.15467244,42586.0,42585.0,0.57836427]
[1641758892232,1.15467244,42586.0,42585.0,0.23463235]
[1641758892432,1.15467244,42586.0,42583.0,0.00032279]
[1641758893074,1.20467244,42586.0,42583.0,0.00032279]
[1641758893278,1.19667244,42586.0,42583.0,0.00032279]
[1641758893475,1.19667244,42586.0,42583.0,0.00011]
[1641758893876,1.14667244,42586.0,42585.0,0.7319967]
[1641758894077,1.14767244,42586.0,42585.0,0.7819967]
[1641758894976,1.14767244,42586.0,42585.0,1.05983256]
[1641758895176,1.14767244,42586.0,42585.0,0.60983256]
[1641758895774,1.19767244,42586.0,42585.0,0.60983256]
[1641758895977,1.14767244,42586.0,42585.0,0.2819967]
[1641758896275,1.14667244,42586.0,42585.0,0.2819967]
[1641758896724,1.14667244,42586.0,42585.0,0.2805967]
[1641758897125,1.14689939,42586.0,42585.0,0.2805967]
[1641758897325,1.14689939,42586.0,42585.0,0.67214406]
[1641758897528,1.14689939,42586.0,42585.0,0.72214406]
[1641758898227,1.14789939,42586.0,42585.0,0.72214406]
[1641758899329,1.14689939,42586.0,42585.0,0.67214406]
[1641758900130,1.19689939,42586.0,42585.0,0.67214406]
[1641758900327,1.14689939,42586.0,42585.0,0.67214406]
[1641758900579,1.14689939,42586.0,42582.0,0.69601626]
[1641758900776,1.14689939,42586.0,42582.0,0.74601626]
[1641758901576,2.14689939,42586.0,42582.0,0.74601626]
[1641758901779,2.14689939,42586.0,42582.0,0.86339726]
[1641758902180,0.00022683,42585.0,42584.0,0.05869]
[1641758902378,0.00022683,42585.0,42584.0,0.10569]
[1641758902578,0.00022683,42585.0,42584.0,0.70569]
[1641758902777,0.00022683,42585.0,42584.0,0.75569]
[1641758902978,0.00022683,42585.0,42584.0,0.15569]
[1641758903177,0.00022683,42585.0,42584.0,0.10569]
[1641758904524,0.00022683,42585.0,42584.0,0.15569]
[1641758904730,1.15569,42584.0,42574.0,0.00011]
[1641758904928,0.00124916,42577.0,42571.0,0.00011]
[1641758905126,0.0012066,42576.0,42571.0,0.00011]
[1641758905726,0.24544419,42576.0,42571.0,0.00011]
[1641758906227,0.23718036,42572.0,42571.0,0.00011]
[1641758907029,0.005,42576.0,42571.0,0.00011]
[1641758907232,0.00022562,42575.0,42571.0,0.00011]
[1641758908075,0.00222562,42575.0,42571.0,0.00011]
[1641758908976,0.00222562,42575.0,42572.0,0.058712]
[1641758909376,0.00120669,42573.0,42571.0,0.00032283]
[1641758909577,0.00121324,42576.0,42572.0,0.45]
[1641758909779,0.00121324,42576.0,42571.0,0.00032283]
[1641758910181,0.00221324,42576.0,42571.0,0.00032283]
[1641758910377,0.00221324,42576.0,42571.0,0.00011]
[1641758911379,0.00121324,42576.0,42571.0,0.00032283]
[1641758912051,0.0002181,42575.0,42571.0,0.00032283]
[1641758913052,0.06093033,42576.0,42571.0,0.00032283]
[1641758913053,0.05,42576.0,42571.0,0.00032283]
[1641758913252,0.00127701,42573.0,42571.0,0.00032283]
[1641758913452,0.01263231,42577.0,42571.0,0.00052853]
[1641758913654,0.05871709,42576.0,42571.0,0.0003157]
[1641758914154,0.002,42576.0,42571.0,0.0003157]
[1641758914654,0.002,42576.0,42572.0,0.058712]
[1641758915058,0.002,42576.0,42571.0,0.0003157]
[1641758915478,0.01263231,42577.0,42571.0,0.0003157]
[1641758915883,0.32537334,42578.0,42573.0,0.65]
[1641758916079,0.32537334,42578.0,42574.0,0.40280996]
[1641758916279,0.003,42577.0,42574.0,0.40280996]
[1641758916681,0.003,42577.0,42572.0,0.0002057]
[1641758916980,0.003,42577.0,42573.0,0.00020569]
[1641758917180,0.00021095,42576.0,42573.0,0.00020569]
[1641758917384,0.00125161,42574.0,42573.0,0.00020569]
[1641758917585,1.51637199,42574.0,42573.0,0.00020569]
[1641758917781,1.51637199,42574.0,42567.0,0.0009329]
[1641758917782,0.058741,42571.0,42567.0,0.0009329]
[1641758918083,0.00126876,42568.0,42567.0,0.00011]
[1641758918282,0.01148476,42568.0,42567.0,0.00011]
[1641758918880,0.00126876,42568.0,42567.0,0.00011]
[1641758920133,0.007,42568.0,42567.0,0.00011]
[1641758921529,0.00127134,42574.0,42567.0,0.00011]
[1641758921731,0.05880812,42575.0,42567.0,0.00011]
[1641758921930,8.854e-05,42575.0,42567.0,0.00011]
[1641758922131,0.00020998,42568.0,42567.0,0.00011]
[1641758922736,0.00020998,42568.0,42567.0,0.058717]
[1641758924078,0.00020998,42568.0,42565.0,0.00032114]
[1641758924278,0.00020998,42568.0,42564.0,0.41848362]
[1641758924478,0.00020998,42568.0,42563.0,0.1181386]
[1641758925878,0.00020998,42568.0,42565.0,0.05893214]
[1641758926181,0.00320998,42568.0,42565.0,0.05893214]
[1641758926381,0.22500753,42568.0,42565.0,0.00021114]
[1641758926727,0.00320998,42568.0,42565.0,0.00021114]
[1641758926926,0.00320998,42568.0,42563.0,0.1181386]
[1641758927425,0.00020985,42567.0,42565.0,0.058722]
[1641758928026,0.00020985,42567.0,42563.0,0.11834443]
[1641758928227,0.00320985,42567.0,42563.0,0.11834443]
[1641758928628,0.00320985,42567.0,42563.0,0.11855026]
[1641758928830,0.00320985,42567.0,42563.0,0.11834443]
[1641758929530,0.00020985,42567.0,42563.0,0.11834443]
[1641758930230,0.00320985,42567.0,42563.0,0.11834443]
[1641758930487,0.00320985,42567.0,42563.0,0.00090743]
[1641758930879,0.00320985,42567.0,42564.0,0.047]
[1641758931083,0.00320985,42567.0,42565.0,0.35490438]
[1641758931281,1.00059959,42570.0,42567.0,1.15]
[1641758931480,1.00059959,42570.0,42569.0,0.917978]
[1641758931681,1.00059959,42570.0,42569.0,0.964978]
[1641758931880,1.00059959,42570.0,42569.0,1.75280259]
[1641758932281,1.00559959,42570.0,42569.0,1.76080259]
[1641758932581,1.00559959,42570.0,42569.0,1.12694059]
[1641758933181,1.00559959,42570.0,42569.0,1.51982099]
[1641758933581,1.00059959,42570.0,42569.0,1.51182099]
[1641758934227,1.00059959,42570.0,42569.0,1.52782099]
[1641758935427,1.00059959,42570.0,42569.0,1.51182099]
[1641758935732,0.53102159,42570.0,42569.0,1.51182099]
[1641758936127,0.06142259,42570.0,42569.0,2.11182099]
[1641758936328,0.00015268,42572.0,42570.0,1.47290398]
[1641758936530,0.00015591,42575.0,42572.0,0.00014732]
[1641758936731,1.2664,42601.0,42574.0,0.6854002]
[1641758936931,0.0002,42600.0,42581.0,0.00121454]
[1641758937131,0.0002,42600.0,42585.0,0.934116]
[1641758937132,0.00124251,42596.0,42585.0,0.934116]
[1641758937329,0.00124251,42596.0,42585.0,0.981116]
[1641758937529,0.22708887,42593.0,42585.0,1.031116]
[1641758937730,0.28419335,42596.0,42585.0,1.031116]
[1641758937977,0.28419335,42596.0,42585.0,1.44328825]
[1641758938280,0.28419335,42596.0,42585.0,1.45428825]
[1641758938679,0.00015264,42588.0,42585.0,1.45428825]
[1641758938879,0.00015264,42588.0,42585.0,1.878368]
[1641758939081,0.00015264,42588.0,42585.0,1.978368]
[1641758939480,0.00015264,42588.0,42585.0,1.967368]
[1641758940381,0.00015264,42588.0,42585.0,1.62588075]
[1641758940785,0.00015264,42588.0,42585.0,0.97588075]
[1641758941182,0.00015264,42588.0,42585.0,0.454801]
[1641758941385,1.19667244,42586.0,42585.0,0.012]
[1641758941582,1.19667244,42586.0,42580.0,0.117397]
[1641758942032,0.3157022,42583.0,42580.0,0.117397]
[1641758942431,0.3157022,42583.0,42580.0,0.145397]
[1641758942632,1.1478776,42586.0,42580.0,0.145397]
[1641758942834,0.05,42585.0,42580.0,0.145397]
[1641758943132,0.00015238,42584.0,42580.0,0.1229966]
[1641758943633,0.00015238,42584.0,42580.0,0.0949966]
[1641758944037,0.00030476,42584.0,42580.0,0.0949966]
[1641758944237,0.00015238,42584.0,42580.0,0.0949966]
[1641758944435,0.00015238,42584.0,42580.0,0.1279966]
[1641758944635,0.00015238,42584.0,42580.0,0.1779966]
[1641758944837,0.00015238,42584.0,42582.0,0.058696]
[1641758946281,0.00015238,42585.0,42582.0,0.104696]
[1641758947083,0.00015238,42585.0,42582.0,0.099696]
[1641758947282,0.0002048,42583.0,42582.0,0.099696]
[1641758947486,0.0002048,42583.0,42582.0,0.053696]
[1641758948286,0.0002048,42583.0,42582.0,0.086696]
[1641758949226,0.9947968,42586.0,42582.0,0.086696]
[1641758949627,0.00015239,42585.0,42582.0,0.053696]
[1641758949830,0.00015239,42585.0,42583.0,0.384116]
[1641758950329,0.00015239,42585.0,42584.0,0.117381]
[1641758950631,0.00015239,42585.0,42584.0,0.501497]
[1641758950829,0.77363623,42586.0,42584.0,0.501497]
[1641758951038,0.77363623,42586.0,42584.0,0.117381]
[1641758951630,0.77363623,42586.0,42582.0,0.045]
[1641758952031,0.00019822,42585.0,42582.0,0.045]
[1641758952231,0.00019822,42585.0,42582.0,0.041]
[1641758952831,0.00019822,42585.0,42583.0,0.058698]
[1641758953085,0.00019822,42585.0,42582.0,0.041]
[1641758953480,0.20047406,42584.0,42582.0,0.041]
[1641758953684,0.00019822,42585.0,42582.0,0.041]
[1641758954183,0.00019822,42585.0,42580.0,0.117393]
[1641758954381,0.00019822,42585.0,42582.0,0.014]
[1641758954581,0.00019822,42585.0,42583.0,0.058698]
[1641758955383,0.00019822,42585.0,42584.0,0.55564161]
[1641758956486,0.00019822,42585.0,42575.0,0.047]
[1641758956487,0.00125849,42576.0,42575.0,0.047]
[1641758956758,0.00125849,42576.0,42573.0,0.00020593]
[1641758956759,0.00124773,42574.0,42573.0,0.00020593]
[1641758957357,0.95013889,42574.0,42573.0,0.00020591]
[1641758957756,0.30013889,42574.0,42573.0,0.00020591]
[1641758957956,0.65013889,42574.0,42573.0,0.00020591]
[1641758958157,0.70013889,42574.0,42573.0,0.00020591]
[1641758958358,0.70313889,42574.0,42573.0,0.01020591]
[1641758958558,0.70313889,42574.0,42573.0,0.01]
[1641758958957,1.05313889,42574.0,42573.0,0.01]
[1641758959159,0.70313889,42574.0,42573.0,0.01]
[1641758959758,0.05872047,42573.0,42571.0,0.00020592]
[1641758960360,0.06272047,42573.0,42571.0,0.01020592]
[1641758960785,0.06272047,42573.0,42571.0,0.01]
[1641758961983,0.75019664,42572.0,42571.0,0.01]
[1641758962182,0.80019664,42572.0,42570.0,0.00020592]
[1641758962486,0.80019664,42572.0,42571.0,0.008]
[1641758962682,0.05019664,42572.0,42571.0,0.008]
[1641758962882,1.00019664,42572.0,42571.0,0.003]
[1641758963082,1.05019664,42572.0,42571.0,0.003]
[1641758963487,1.53551851,42572.0,42571.0,0.003]
[1641758963684,0.07086629,42571.0,42569.0,0.00020592]
[1641758963887,1.534116,42570.0,42569.0,0.00020592]
[1641758964090,1.634116,42570.0,42569.0,0.00020592]
[1641758964337,0.492116,42570.0,42569.0,0.00020592]
[1641758964935,1.242116,42570.0,42569.0,0.00020592]
[1641758965237,0.00128631,42568.0,42567.0,0.00020593]
[1641758965434,0.11747239,42569.0,42567.0,0.00020593]
[1641758965635,1.19373611,42568.0,42567.0,0.00020593]
[1641758966235,1.4115844,42568.0,42565.0,0.00020593]
[1641758966439,0.00125096,42566.0,42565.0,0.00020593]
[1641758966838,0.74943501,42566.0,42565.0,0.00020593]
[1641758967035,0.88355801,42566.0,42565.0,0.00020593]
[1641758967336,0.88355801,42566.0,42563.0,0.00240754]
[1641758967537,0.49943501,42566.0,42563.0,0.00240754]
[1641758967735,0.39943501,42566.0,42563.0,0.00240754]
[1641758967997,0.31211988,42567.0,42563.0,0.00240754]
[1641758968197,0.25338408,42567.0,42563.0,0.00240754]
[1641758968397,0.006,42566.0,42563.0,0.00240754]
[1641758968597,0.006,42566.0,42563.0,0.0022016]
[1641758969302,0.006,42566.0,42564.0,0.384123]
[1641758969500,0.006,42566.0,42564.0,0.434123]
[1641758969699,0.00019615,42568.0,42564.0,0.434123]
[1641758969901,0.00019615,42568.0,42567.0,1.534123]
[1641758970102,0.00019615,42568.0,42567.0,1.88332921]
[1641758970400,0.00019615,42568.0,42567.0,1.94203821]
[1641758970999,0.00019615,42568.0,42567.0,0.442832]
[1641758971198,0.00019615,42568.0,42567.0,0.342832]
[1641758971403,0.00019615,42568.0,42567.0,0.284123]
[1641758971744,0.00019615,42568.0,42564.0,0.00020594]
[1641758972137,0.28199709,42565.0,42564.0,0.00020594]
[1641758972339,0.004,42568.0,42564.0,0.01320594]
[1641758973137,0.004,42568.0,42565.0,0.00020593]
[1641758973538,0.65599501,42571.0,42565.0,0.00020593]
[1641758973937,0.75599501,42571.0,42565.0,0.00020593]
[1641758974241,0.75599501,42571.0,42564.0,0.00020594]
[1641758974437,0.76399501,42571.0,42564.0,0.00020594]
[1641758975039,0.76399501,42571.0,42566.0,0.00020593]
[1641758975239,0.05872716,42569.0,42566.0,0.00020593]
[1641758976087,0.05872716,42569.0,42565.0,0.00020593]
[1641758976285,0.05872716,42569.0,42566.0,0.003]
[1641758976585,0.06572716,42569.0,42566.0,0.003]
[1641758976987,0.00127325,42567.0,42566.0,0.003]
[1641758977186,1.6433389,42567.0,42566.0,0.003]
[1641758977390,1.15,42566.0,42563.0,0.0022016]
[1641758977586,0.44408763,42565.0,42563.0,0.0022016]
[1641758977787,1.52871541,42564.0,42563.0,0.0022016]
[1641758977986,1.63837641,42564.0,42563.0,0.0022016]
[1641758978188,0.58837641,42564.0,42563.0,0.0022016]
[1641758978386,0.59537641,42564.0,42563.0,0.0022016]
[1641758979540,0.58837641,42564.0,42563.0,0.0022016]
[1641758979740,1.23837641,42564.0,42563.0,0.0022016]
[1641758980441,1.24437641,42564.0,42563.0,0.0022016]
[1641758980643,0.56708084,42564.0,42563.0,0.0022016]
[1641758981542,0.56708084,42564.0,42561.0,0.04346206]
[1641758981543,0.934123,42563.0,42561.0,0.04346206]
[1641758981742,0.14375143,42562.0,42561.0,0.04346206]
[1641758981946,0.19375143,42562.0,42561.0,0.04346206]
[1641758982343,0.19375143,42562.0,42561.0,0.05146206]
[1641758982344,0.19775143,42562.0,42561.0,0.05146206]
[1641758982546,0.004,42562.0,42561.0,0.05146206]
[1641758982744,0.004,42562.0,42561.0,0.0512492]
[1641758983389,0.004,42562.0,42561.0,0.29818656]
[1641758983590,1.00019567,42564.0,42561.0,0.29018656]
[1641758983788,1.00019567,42564.0,42562.0,0.05]
[1641758983989,1.00019567,42564.0,42561.0,0.29018656]
[1641758984387,1.00019567,42564.0,42562.0,0.01]
[1641758985389,1.00019567,42564.0,42562.0,0.009737]
[1641758985589,1.00019567,42564.0,42561.0,0.0432492]
[1641758985790,0.42018766,42564.0,42561.0,0.0432492]
[1641758985991,0.42018766,42564.0,42562.0,0.058726]
[1641758986191,0.42018766,42564.0,42563.0,0.384123]
[1641758986834,0.42018766,42564.0,42561.0,0.05345491]
[1641758987035,0.42018766,42564.0,42562.0,0.384123]
[1641758987342,0.00019555,42563.0,42561.0,0.33110121]
[1641758987533,0.00019555,42563.0,42561.0,0.38982921]
[1641758987734,0.00019555,42563.0,42561.0,0.05345491]
[1641758988336,0.00019555,42563.0,42561.0,0.0812492]
[1641758988938,0.00019555,42563.0,42561.0,0.1399762]
[1641758989840,0.00019555,42563.0,42561.0,0.1019762]
[1641758990039,0.00015418,42569.0,42564.0,0.24181489]
[1641758990238,0.00015418,42569.0,42564.0,0.12580841]
[1641758991088,0.00015418,42569.0,42568.0,0.5513326]
[1641758991287,0.00015418,42569.0,42568.0,0.9354556]
[1641758992089,0.00015418,42569.0,42568.0,0.67343954]
[1641758992290,0.05995838,42573.0,42568.0,0.67343954]
[1641758992496,0.006,42569.0,42568.0,0.29531654]
[1641758993190,0.006,42569.0,42568.0,0.67943954]
[1641758993593,0.05995838,42573.0,42568.0,0.67343954]
[1641758993791,0.05995838,42573.0,42568.0,0.28931654]
[1641758994236,0.26794068,42573.0,42568.0,0.28931654]
[1641758994433,0.27394068,42573.0,42568.0,0.29431654]
[1641758994633,0.06095838,42573.0,42568.0,0.29431654]
[1641758995734,0.05495838,42573.0,42568.0,0.28931654]
[1641758996433,0.06095838,42573.0,42568.0,0.29331654]
[1641758997238,0.006,42573.0,42569.0,0.058716]
[1641758997439,0.006,42573.0,42572.0,1.53533926]
[1641758997643,0.00015418,42574.0,42572.0,1.73233926]
[1641758997837,0.72363623,42586.0,42574.0,1.534123]
[1641758998093,0.72363623,42586.0,42582.0,0.24655918]
[1641758998290,0.72363623,42586.0,42583.0,0.49030347]
[1641758998492,0.72363623,42586.0,42584.0,0.058696]
[1641758998689,0.72363623,42586.0,42585.0,1.081123]
[1641758998892,0.72363623,42586.0,42585.0,1.131123]
[1641758999091,0.72363623,42586.0,42585.0,1.20401911]
[1641758999490,0.72363623,42586.0,42585.0,1.59605974]
[1641759000293,0.72363623,42586.0,42585.0,1.69605974]
[1641759000495,0.72363623,42586.0,42585.0,1.70405974]
[1641759001590,0.72363623,42586.0,42585.0,1.69605974]
[1641759002441,0.72363623,42586.0,42585.0,1.70905974]
[1641759003343,0.72363623,42586.0,42585.0,1.60905974]
[1641759003542,0.72363623,42586.0,42585.0,0.51701911]
[1641759003742,0.72363623,42586.0,42585.0,0.50401911]
[1641759004344,0.72363623,42586.0,42585.0,0.11989611]
[1641759004542,0.72363623,42586.0,42585.0,0.12989611]
[1641759005145,0.72363623,42586.0,42585.0,0.08289611]
[1641759005593,0.72363623,42586.0,42585.0,0.01]
[1641759005786,0.72363623,42586.0,42580.0,0.23805574]
[1641759005986,0.72363623,42586.0,42581.0,0.384123]
[1641759006387,0.05870744,42585.0,42581.0,0.007]
[1641759006988,0.72778842,42586.0,42581.0,0.007]
[1641759007186,0.72778842,42586.0,42582.0,0.2938241]
[1641759007987,0.72794061,42586.0,42582.0,0.2938241]
[1641759008194,0.72778842,42586.0,42582.0,0.2938241]
[1641759008388,0.72378842,42586.0,42582.0,0.2938241]
[1641759009088,0.77378842,42586.0,42583.0,0.058699]
[1641759009347,0.77378842,42586.0,42579.0,0.117397]
[1641759009542,0.72378842,42586.0,42579.0,0.117397]
[1641759010344,0.00015219,42585.0,42579.0,0.36590423]
[1641759011145,0.00015219,42585.0,42579.0,0.117397]
[1641759011146,0.26355276,42584.0,42579.0,0.117397]
[1641759011345,0.26370495,42584.0,42579.0,0.117397]
[1641759011743,0.00015219,42584.0,42579.0,0.117397]
[1641759012344,0.00015219,42584.0,42579.0,0.112397]
[1641759012544,0.00015219,42584.0,42579.0,0.113397]
[1641759012744,0.2673634,42582.0,42579.0,0.113397]
[1641759012996,0.2673634,42582.0,42579.0,0.001]
[1641759013400,0.75228738,42581.0,42579.0,0.001]
[1641759013599,1.94849987,42580.0,42579.0,0.001]
[1641759013796,1.94971363,42580.0,42570.0,0.00020594]
[1641759013997,0.29807371,42571.0,42564.0,0.12101435]
[1641759014199,0.36816438,42579.0,42565.0,0.05997119]
[1641759014397,0.00121376,42580.0,42565.0,0.00124819]
[1641759014599,0.008,42571.0,42570.0,0.00020592]
[1641759014798,0.008,42571.0,42570.0,1.03432892]
[1641759015198,0.008,42571.0,42570.0,0.38432892]
[1641759015901,0.00015553,42573.0,42570.0,0.384123]
[1641759016099,0.00015553,42573.0,42569.0,0.117425]
[1641759016497,0.00515553,42573.0,42570.0,0.006]
[1641759017043,0.005,42573.0,42572.0,0.442837]
[1641759017242,0.005,42573.0,42572.0,0.492837]
[1641759017743,0.00015553,42574.0,42572.0,0.492837]
[1641759017744,0.36577991,42582.0,42574.0,0.38452531]
[1641759018045,0.29790678,42584.0,42577.0,0.20679507]
[1641759018244,0.72363623,42586.0,42577.0,0.25679507]
[1641759018448,0.00867,42582.0,42578.0,0.39623951]
[1641759018644,0.00867,42582.0,42579.0,0.384123]
[1641759018844,0.00867,42582.0,42580.0,0.431123]
[1641759019044,0.00647,42582.0,42581.0,0.384123]
[1641759019242,0.00537,42582.0,42581.0,0.384123]
[1641759019446,0.00479,42582.0,42581.0,0.78692759]
[1641759019642,0.00421,42582.0,42581.0,0.83692759]
[1641759019844,0.72363623,42586.0,42583.0,0.058699]
[1641759020243,0.00015233,42584.0,42583.0,0.058699]
[1641759020489,0.00015233,42584.0,42583.0,0.064699]
[1641759020694,0.00015233,42584.0,42583.0,0.35454129]
[1641759021096,0.00015233,42584.0,42583.0,0.78866429]
[1641759021294,0.72378573,42586.0,42583.0,0.78866429]
[1641759021490,0.72378573,42586.0,42584.0,0.384123]
[1641759021889,0.72378573,42586.0,42583.0,0.39854129]
[1641759022492,0.72363623,42586.0,42583.0,0.40154129]
[1641759023294,0.72363623,42586.0,42583.0,0.34284229]
[1641759023894,0.72363623,42586.0,42583.0,0.33984229]
[1641759024542,0.72363623,42586.0,42583.0,0.34284229]
[1641759025739,0.72363623,42586.0,42583.0,0.33984229]
[1641759026539,0.72363623,42586.0,42583.0,0.34284229]
[1641759026939,0.72363623,42586.0,42583.0,0.40154229]
[1641759027138,0.0001917,42585.0,42583.0,0.40154229]
[1641759027740,0.0001917,42585.0,42583.0,0.39854229]
[1641759028589,0.0001917,42585.0,42583.0,0.40154229]
[1641759028789,0.0001917,42585.0,42584.0,0.384123]
[1641759029187,0.0001917,42585.0,42584.0,0.7309007]
[1641759029388,0.0001917,42585.0,42584.0,0.95706591]
[1641759029588,0.0001917,42585.0,42584.0,1.36278537]
[1641759029788,0.0001917,42585.0,42584.0,1.01600767]
[1641759030394,0.0001917,42585.0,42584.0,0.384123]
[1641759030588,0.0001917,42585.0,42584.0,0.006]
[1641759031594,0.0001917,42585.0,42584.0,0.390123]
[1641759031846,0.0001917,42585.0,42584.0,0.384123]
[1641759032447,0.0001917,42585.0,42584.0,0.389123]
[1641759033345,0.0001917,42585.0,42584.0,0.73757632]
[1641759033546,0.0001917,42585.0,42584.0,0.88757632]
[1641759034151,0.0001917,42585.0,42584.0,1.04797257]
[1641759034347,0.0001917,42585.0,42584.0,1.04297257]
[1641759034547,0.0001917,42585.0,42584.0,1.04997257]
[1641759034748,0.0001917,42585.0,42584.0,0.70151925]
[1641759034948,0.0001917,42585.0,42584.0,1.05030208]
[1641759035791,0.0001917,42585.0,42584.0,1.04330208]
[1641759036188,0.0001917,42585.0,42584.0,1.09030208]
[1641759036588,0.0001917,42585.0,42584.0,1.09730208]
[1641759037089,0.0001917,42585.0,42584.0,1.49730208]
[1641759037494,0.0001523,42587.0,42586.0,1.37363623]
[1641759037691,0.0001523,42587.0,42586.0,2.2700013]
[1641759037889,0.0001523,42587.0,42586.0,2.4200013]
[1641759038092,0.0002,42600.0,42586.0,2.4200013]
[1641759038093,0.0002,42600.0,42589.0,0.2]
[1641759038294,0.0002,42600.0,42588.0,0.384123]
[1641759038295,0.0002,42600.0,42594.0,0.27320095]
[1641759038494,0.0002,42600.0,42599.0,1.29896065]
[1641759038692,0.0002,42600.0,42599.0,1.18057151]
[1641759038891,1.39816072,42613.0,42600.0,1.15]
[1641759039094,1.39816072,42613.0,42609.0,0.00124546]
[1641759039344,1.39755191,42613.0,42610.0,0.21204167]
[1641759039546,0.39915191,42613.0,42610.0,0.26163167]
[1641759039743,0.49635318,42615.0,42611.0,0.56043032]
[1641759039945,1.17855191,42622.0,42612.0,0.3571012]
[1641759040147,0.39915191,42622.0,42612.0,0.3566912]
[1641759040749,2.02755318,42624.0,42611.0,0.60743032]
[1641759040750,0.24184948,42619.0,42611.0,0.60743032]
[1641759041147,0.24194085,42619.0,42611.0,0.60743032]
[1641759041548,0.29194085,42619.0,42612.0,0.058661]
[1641759042152,0.00018931,42618.0,42612.0,0.058661]
[1641759042350,0.00015699,42617.0,42612.0,0.108661]
[1641759042549,1.53182787,42624.0,42612.0,0.110661]
[1641759042550,0.87787417,42624.0,42612.0,0.110661]
[1641759042751,0.0586557,42623.0,42615.0,0.058656]
[1641759043002,0.407016,42623.0,42615.0,0.058656]
[1641759043201,0.26606916,42620.0,42615.0,0.058656]
[1641759043999,0.26606916,42620.0,42615.0,0.42801201]
[1641759044196,0.05865282,42625.0,42619.0,0.29037613]
[1641759044806,0.2556,42630.0,42620.0,1.15]
[1641759045002,0.0003,42631.0,42621.0,0.0012777]
[1641759045204,0.0003,42631.0,42626.0,0.21341368]
[1641759045400,0.0003,42631.0,42629.0,0.3753707]
[1641759045401,0.1003,42631.0,42629.0,0.3753707]
[1641759045799,0.10066541,42631.0,42629.0,0.69737238]
[1641759046199,0.10066541,42631.0,42630.0,0.384123]
[1641759046852,0.1003,42631.0,42630.0,0.384123]
[1641759047852,0.1003,42631.0,42628.0,1.60771827]